fUSD/lending_fUSD_20240529
["ID","MTS","AMOUNT","RATE_DAILY","PERIOD"]
[328167520,1716987838804,4000.0,9.673e-05,2]
[328167521,1716987838825,4000.0,9.673e-05,2]
[328167522,1716987838846,1873.13890035,9.673e-05,2]
[328167523,1716987843384,2126.86109965,9.673e-05,2]
[328167524,1716987843408,4000.0,9.673e-05,2]
[328167525,1716987843431,4000.0,9.673e-05,2]
[328167526,1716987843454,4000.0,9.673e-05,2]
[328167527,1716987843475,4000.0,9.673e-05,2]
[328167528,1716987843498,1622.58512427,9.673e-05,2]
[328167529,1716987843632,2377.41487573,9.673e-05,2]
[328167530,1716987843654,4000.0,9.673e-05,2]
[328167531,1716987843675,4000.0,9.673e-05,2]
[328167532,1716987843697,4000.0,9.673e-05,2]
[328167533,1716987843720,4000.0,9.673e-05,2]
[328167534,1716987843742,4000.0,9.673e-05,2]
[328167535,1716987843764,4000.0,9.673e-05,2]
[328167536,1716987843787,4000.0,9.673e-05,2]
[328167537,1716987843808,4000.0,9.673e-05,2]
[328167601,1716988232353,-2550.34059855,7.255e-05,2]
[328167603,1716988232363,-359.0,9.573e-05,2]
[328167604,1716988232372,-326.36039384,9.671e-05,2]
[328167605,1716988232382,-338.85867312,9.671e-05,2]
[328167606,1716988232391,-1302.39385506,9.671e-05,2]
[328167607,1716988232400,-428.90206147,9.671e-05,2]
[328167608,1716988232409,-161.34970624,9.671e-05,2]
[328167609,1716988232419,-449.42494308,9.671e-05,2]
[328167610,1716988232428,-784.71344393,9.671e-05,2]
[328167611,1716988232437,-97910.77656691,9.673e-05,2]
[328167643,1716988233102,-41.23909295,9.673e-05,2]
[328167651,1716988238470,-1986.34076879,9.673e-05,2]
[328167652,1716988238606,-271.42723131,9.673e-05,2]
[328167761,1716988241275,-21213.97994737,9.673e-05,2]
[328167787,1716988243426,-469.67010088,9.673e-05,2]
[328167789,1716988243513,-803.40521549,9.673e-05,2]
[328167791,1716988243527,-1344.23500445,9.673e-05,2]
[328167794,1716988243607,-765.12000001,9.673e-05,2]
[328167795,1716988243619,-1105.97880922,9.673e-05,2]
[328167796,1716988243697,-1243.822605,9.673e-05,2]
[328167823,1716988491071,151.0,0.00023282,120]
[328167855,1716988823926,-180.66,8.908e-05,2]
[328167856,1716988823948,-3819.34,8.908e-05,2]
[328167857,1716988824526,-4000.0,8.908e-05,2]
[328167858,1716988825100,-3595.97722584,8.908e-05,2]
[328167861,1716988847830,-600.0,9e-05,2]
[328167862,1716988887637,404.02277416,6.75e-05,2]
[328167863,1716988887659,2146.31782439,6.75e-05,2]
[328167864,1716988888869,170.4,8.832e-05,2]
[328167865,1716988907641,1683.28217561,6.75e-05,2]
[328167866,1716988907663,867.05842294,6.75e-05,2]
[328167867,1716988925621,2550.34059855,6.75e-05,2]
[328167868,1716988941857,155.0,6.75e-05,2]
[328167869,1716988942043,155.0,6.75e-05,2]
[328167870,1716988942138,272.60097851,6.75e-05,2]
[328167871,1716988942160,4000.0,6.75e-05,2]
[328167872,1716988942181,4000.0,6.75e-05,2]
[328167873,1716988942201,4000.0,6.75e-05,2]
[328167874,1716988942221,4000.0,6.75e-05,2]
[328167875,1716988942241,4000.0,6.75e-05,2]
[328167876,1716988942264,4000.0,6.75e-05,2]
[328167877,1716988942287,367.25239198,6.75e-05,2]
[328167878,1716988948472,3632.74760802,6.75e-05,2]
[328167879,1716988948495,4000.0,6.75e-05,2]
[328167880,1716988948518,4000.0,6.75e-05,2]
[328167881,1716988948540,4000.0,6.75e-05,2]
[328167882,1716988948564,4000.0,6.75e-05,2]
[328167883,1716988948586,4000.0,6.75e-05,2]
[328167884,1716988948608,4000.0,6.75e-05,2]
[328167885,1716988948630,4000.0,6.75e-05,2]
[328167886,1716988948655,4000.0,6.75e-05,2]
[328167887,1716989017953,-155.0,6.073e-05,2]
[328167888,1716989017975,-403.27366081,6.749e-05,2]
[328167889,1716989017995,-41.72633919,6.749e-05,2]
[328167935,1716989431773,-380.04295626,6.072e-05,2]
[328167936,1716989431786,-23.23070455,6.072e-05,2]
[328167937,1716989431796,-572.59155094,6.749e-05,2]
[328167938,1716989431807,-2790.34058908,6.749e-05,2]
[328167939,1716989431819,-3850.31055054,6.749e-05,2]
[328167974,1716989437675,-37274.88014421,6.749e-05,2]
[328167990,1716989437819,-11281.41034226,6.749e-05,2]
[328167992,1716989437831,-5213.2416444,6.749e-05,2]
[328167994,1716989437843,-1136.551584,6.749e-05,2]
[328167996,1716989437854,-5093.7,6.749e-05,2]
[328168008,1716989437972,-4160.92370981,6.749e-05,2]
[328168010,1716989437985,-1158.01182565,6.749e-05,2]
[328168011,1716989437996,-1006.68750238,6.749e-05,2]
[328168012,1716989438007,-2202.83073604,6.749e-05,2]
[328168013,1716989438019,-5360.37217192,6.749e-05,2]
[328168014,1716989438031,-155368.30986634,6.749e-05,2]
[328168157,1716989440877,-13652.794,6.749e-05,2]
[328168192,1716989442846,-7626.40784336,6.749e-05,2]
[328168193,1716989443017,-383.45,6.749e-05,2]
[328168194,1716989443028,-11040.21477392,6.749e-05,2]
[328168195,1716989443040,-4687.63289141,6.749e-05,2]
[328168196,1716989443051,-2012.60884854,6.749e-05,2]
[328168197,1716989443159,-2534.2023882,6.749e-05,2]
[328168198,1716989443326,-269730.31767172,6.749e-05,2]
[328168199,1716989443336,-24639.85337049,6.749e-05,2]
[328168200,1716989443345,-19749.44622392,6.749e-05,2]
[328168201,1716989443355,-1272.30734748,6.749e-05,2]
[328168202,1716989443364,-305.58094727,6.75e-05,2]
[328168203,1716989443374,-180.59937556,6.75e-05,2]
[328168204,1716989443383,-12163.21804885,6.75e-05,2]
[328168205,1716989443392,-164.47,8.708e-05,2]
[328168206,1716989443402,-1361.5753028,9e-05,2]
[328168207,1716989443411,-748.09,9.038e-05,2]
[328168208,1716989443420,-155.0,9.671e-05,2]
[328168209,1716989443429,-784.50568424,9.671e-05,2]
[328168210,1716989443438,-1394.34936297,9.671e-05,2]
[328168211,1716989443447,-657.26693931,9.671e-05,2]
[328168212,1716989443457,-155.0,9.671e-05,2]
[328168213,1716989443467,-157.90877204,9.671e-05,2]
[328168214,1716989443476,-35394.24475189,9.671e-05,2]
[328168215,1716989443486,-5289.87340278,9.672e-05,2]
[328168216,1716989443495,-946.47526423,9.673e-05,2]
[328168217,1716989443505,-155.0,9.673e-05,2]
[328168218,1716989443514,-289.48756793,9.673e-05,2]
[328168219,1716989443523,-155.0,9.673e-05,2]
[328168220,1716989443533,-362.48332984,9.673e-05,2]
[328168221,1716989443543,-346.92954689,9.673e-05,2]
[328168222,1716989443552,-793.34734711,0.0001,2]
[328168223,1716989443561,-252.7560391,0.0001,2]
[328168224,1716989443571,-150.99,0.0001,2]
[328168225,1716989443581,-1676.88796,0.0001,2]
[328168227,1716989443590,-520.21,0.00010789,2]
[328168230,1716989443602,-250.0,0.00010855,2]
[328168232,1716989443612,-23900.0,0.00010896,2]
[328168234,1716989443621,-1500.0,0.00010959,2]
[328168236,1716989443630,-486.23,0.00010959,2]
[328168238,1716989443639,-486.23,0.00010959,2]
[328168240,1716989443648,-618.86,0.00010959,2]
[328168241,1716989443657,-1655.03,0.00010968,2]
[328168244,1716989443666,-1920.56,0.00010974,2]
[328168246,1716989443675,-412.11358305,0.00011,2]
[328168247,1716989443684,-5196.67,0.00011,2]
[328168248,1716989443694,-250.0,0.00011016,2]
[328168251,1716989443704,-177.41,0.00011063,2]
[328168254,1716989443714,-1000.0,0.000111,2]
[328168256,1716989443723,-170.69,0.00011135,2]
[328168258,1716989443733,-7434.99,0.00011187,2]
[328168260,1716989443742,-748.09,0.00011302,2]
[328168261,1716989443751,-871.25,0.00011382,2]
[328168262,1716989443760,-868.01,0.00011641,2]
[328168263,1716989443770,-150.0,0.00011671,2]
[328168264,1716989443779,-423.7807094,0.00011698,2]
[328168265,1716989443790,-1000.0,0.00012487,2]
[328168267,1716989443799,-3209.127,0.00012621,2]
[328168269,1716989443808,-150.0,0.00012621,2]
[328168271,1716989443818,-150.0,0.00012739,2]
[328168272,1716989443827,-150.0,0.00012745,2]
[328168273,1716989443835,-150.0,0.00012749,2]
[328168274,1716989443845,-150.0,0.00012769,2]
[328168275,1716989443855,-150.0,0.0001277,2]
[328168276,1716989443864,-150.0,0.0001278,2]
[328168277,1716989443874,-150.0,0.00012786,2]
[328168278,1716989443889,-1000.0,0.000128,2]
[328168279,1716989443898,-150.0,0.00012801,2]
[328168280,1716989443908,-150.0,0.00012804,2]
[328168281,1716989443918,-150.0,0.00012868,2]
[328168282,1716989443927,-37181.1253,0.00012891,2]
[328168283,1716989443936,-1000.0,0.000129,2]
[328168284,1716989443947,-1000.0,0.000129,2]
[328168285,1716989443956,-1000.0,0.000129,2]
[328168286,1716989443969,-1000.0,0.000129,2]
[328168287,1716989443979,-1149.0,0.000129,2]
[328168288,1716989443989,-2874.81936632,0.000129,2]
[328168289,1716989443999,-10000.0,0.000129,2]
[328168290,1716989444008,-1050.31837128,0.000129,2]
[328168291,1716989444018,-309.64604086,0.000129,2]
[328168292,1716989444028,-150.0,0.00012933,2]
[328168293,1716989444039,-150.0,0.00012954,2]
[328168294,1716989444049,-500.0,0.0001296,2]
[328168295,1716989444059,-500.0,0.0001296,2]
[328168296,1716989444068,-160.31674267,0.00012961,2]
[328168297,1716989444078,-150.0,0.00012971,2]
[328168298,1716989444088,-150.0,0.00012982,2]
[328168299,1716989444098,-4036.0883353,0.00012991,2]
[328168300,1716989444107,-755.9122342,0.00012991,2]
[328168301,1716989444117,-200.8152149,0.00012991,2]
[328168302,1716989444127,-320.326883,0.00012991,2]
[328168303,1716989444137,-206.7880131,0.00012991,2]
[328168304,1716989444146,-599.27979208,0.00012999,2]
[328168305,1716989444156,-1237707.68014953,0.00013,2]
[328168324,1716989483805,400.0,0.000122,4]
[328168325,1716989486040,800.0,0.000123,4]
[328168328,1716989488047,1200.0,0.000124,4]
[328168330,1716989490166,1700.0,0.000125,4]
[328168331,1716989492259,2100.0,0.000126,4]
[328168332,1716989494347,400.0,0.000127,4]
[328168334,1716989496583,400.0,0.000128,4]
[328168335,1716989498686,400.0,0.000129,4]
[328168365,1716990087811,-254.18206746,6.749e-05,2]
[328168366,1716990087836,-23944.01530347,6.749e-05,2]
[328168367,1716990087861,-10801.80262907,6.749e-05,2]
[328168481,1716990632067,-2816.36180724,6.743e-05,2]
[328168482,1716990632077,-786.08076769,6.744e-05,2]
[328168483,1716990632089,-14654.8062064,6.744e-05,2]
[328168484,1716990632100,-472.04,6.744e-05,2]
[328168485,1716990632112,-418.54007673,6.744e-05,2]
[328168486,1716990632124,-2912.71915471,6.744e-05,2]
[328168487,1716990632283,-969.45652537,6.744e-05,2]
[328168488,1716990632295,-3367.93087916,6.744e-05,2]
[328168489,1716990632306,-1565.31339387,6.744e-05,2]
[328168490,1716990632317,-811.05669613,6.744e-05,2]
[328168492,1716990632477,-1616.31417857,6.744e-05,2]
[328168493,1716990632492,-7841.6039869,6.744e-05,2]
[328168494,1716990632502,-579.86524173,6.744e-05,2]
[328168515,1716990638133,-7545.15139075,6.744e-05,2]
[328168516,1716990638145,-3862.80905884,6.744e-05,2]
[328168517,1716990638155,-3293.75899762,6.747e-05,2]
[328168518,1716990638164,-322.18540633,6.747e-05,2]
[328168519,1716990638174,-155.24195711,6.747e-05,2]
[328168520,1716990638183,-268.08947108,6.748e-05,2]
[328168521,1716990638192,-108162.69934577,6.749e-05,2]
[328168522,1716990638232,-163.00145195,6.749e-05,2]
[328168523,1716990638320,-747.10225798,6.749e-05,2]
[328168526,1716990638333,-439064.98757902,6.749e-05,2]
[328168528,1716990638343,-19749.44622392,6.749e-05,2]
[328168530,1716990638352,-26383.13348543,6.94e-05,2]
[328168532,1716990638363,-3330.163063,8.178e-05,2]
[328168534,1716990638372,-722.36,8.391e-05,2]
[328168536,1716990638382,-167.97,8.538e-05,2]
[328168538,1716990638392,-9363.55051866,9e-05,2]
[328168540,1716990638401,-18186.90754574,0.0001,2]
[328168542,1716990638411,-170.69,0.00010239,2]
[328168544,1716990638420,-2845.03,0.00010347,2]
[328168546,1716990638430,-150.99,0.00010347,2]
[328168548,1716990638439,-801.87,0.00010347,2]
[328168550,1716990638448,-23900.0,0.00010582,2]
[328168552,1716990638458,-150.0,0.00010609,2]
[328168554,1716990638468,-232.34,0.0001062,2]
[328168556,1716990638477,-722.36,0.00010655,2]
[328168558,1716990638489,-200.0,0.00010709,2]
[328168560,1716990638498,-250.0,0.0001071,2]
[328168562,1716990638507,-500.0,0.0001073,2]
[328168565,1716990638517,-1895.56,0.00010743,3]
[328168568,1716990638527,-158.8,0.00010748,2]
[328168570,1716990638536,-158.8,0.00010818,2]
[328168573,1716990638545,-158.8,0.00010888,2]
[328168576,1716990638555,-158.8,0.00010958,2]
[328168577,1716990638564,-565.96,0.00010959,2]
[328168579,1716990638573,-8026.73,0.00010959,2]
[328168581,1716990638583,-13106.80311711,0.00011,2]
[328168583,1716990638592,-158.8,0.00011028,2]
[328168585,1716990638601,-158.8,0.00011098,2]
[328168587,1716990638611,-1000.0,0.00011126,2]
[328168590,1716990638620,-3080.86,0.00011126,2]
[328168591,1716990638630,-158.8,0.00011168,2]
[328168594,1716990638639,-250.0,0.00011184,2]
[328168595,1716990638648,-943.46,0.00011213,2]
[328168597,1716990638658,-908.93,0.00011213,2]
[328168599,1716990638667,-158.8,0.00011238,2]
[328168601,1716990638676,-181.13,0.00011248,2]
[328168603,1716990638686,-158.8,0.00011308,2]
[328168605,1716990638695,-4865.94,0.00011309,2]
[328168607,1716990638704,-171.37,0.00011566,2]
[328168609,1716990638714,-21482.4823,0.000117,2]
[328168611,1716990638723,-499.99,0.0001174,2]
[328168613,1716990638735,-80967.06868349,0.000118,2]
[328168615,1716990638744,-155.28,0.00011994,2]
[328168617,1716990638753,-151.82,0.00012,2]
[328168619,1716990638762,-155.28,0.00012003,2]
[328168622,1716990638772,-155.28,0.00012011,2]
[328168624,1716990638782,-155.28,0.0001202,2]
[328168625,1716990638791,-155.28,0.00012028,2]
[328168627,1716990638800,-155.28,0.00012037,2]
[328168629,1716990638809,-155.28,0.00012046,2]
[328168631,1716990638818,-155.28,0.00012054,2]
[328168633,1716990638828,-524.95,0.00012493,2]
[328168636,1716990638838,-154.04,0.00012493,2]
[328168638,1716990638847,-524.95,0.00012493,2]
[328168640,1716990638857,-524.95,0.00012493,2]
[328168641,1716990638867,-172.83,0.00012493,2]
[328168643,1716990638876,-524.95,0.00012493,2]
[328168645,1716990638885,-1000.0,0.00012517,2]
[328168647,1716990638894,-412.17126416,0.00012676,2]
[328168650,1716990638904,-1421.37746154,0.00012719,2]
[328168652,1716990638913,-154.94796708,0.00012728,2]
[328168654,1716990638923,-300.0,0.00012733,2]
[328168656,1716990638932,-150.0,0.00012746,2]
[328168658,1716990638941,-200.0,0.00012749,2]
[328168660,1716990638951,-303.88082433,0.00012761,2]
[328168661,1716990638959,-150.0,0.00012772,2]
[328168663,1716990638969,-1500.0,0.00012775,2]
[328168665,1716990638978,-150.0,0.00012783,2]
[328168667,1716990638988,-150.0,0.00012783,2]
[328168669,1716990638998,-1500.0,0.00012788,2]
[328168671,1716990639007,-1500.0,0.00012788,2]
[328168673,1716990639017,-10733.4796,0.000128,2]
[328168675,1716990639026,-5271.8187,0.000128,2]
[328168677,1716990639036,-1000.0,0.000128,2]
[328168680,1716990639046,-4291.18941686,0.000128,2]
[328168753,1716990642092,-1360.42936067,0.00010605,2]
[328168754,1716990642104,-535.92063933,0.00010605,2]
[328168755,1716990642115,-3208.81058314,0.000128,2]
[328168756,1716990642124,-150.0,0.00012815,2]
[328168757,1716990642134,-150.0,0.00012831,2]
[328168758,1716990642143,-150.0,0.00012832,2]
[328168759,1716990642153,-504.57058238,0.00012841,2]
[328168777,1716990643348,-415.453346,0.00012841,2]
[328168789,1716990646153,-421.33,0.00012493,2]
[328168790,1716990646163,-172.65228505,0.0001284,2]
[328168791,1716990646173,-472.09486973,0.0001284,2]
[328168792,1716990646182,-453.98054057,0.0001284,2]
[328168793,1716990646192,-428.74701672,0.0001284,2]
[328168794,1716990646202,-542.74592865,0.00012841,2]
[328168795,1716990646215,-37.23014297,0.00012841,2]
[328168796,1716990646225,-150.0,0.0001285,2]
[328168797,1716990646237,-150.0,0.00012851,2]
[328168798,1716990646247,-1500.0,0.00012857,2]
[328168799,1716990646257,-150.0,0.00012862,2]
[328168800,1716990646267,-150.0,0.00012866,2]
[328168801,1716990646277,-150.0,0.00012884,2]
[328168802,1716990646290,-300.0,0.0001289,2]
[328168803,1716990646300,-2635.25108572,0.00012891,2]
[328168804,1716990646310,-167.08175585,0.00012891,2]
[328168805,1716990646319,-150.0,0.00012892,2]
[328168806,1716990646329,-11425.68701545,0.000129,2]
[328168904,1716991347225,-489.57096973,6.741e-05,2]
[328168905,1716991347250,-35415.86186553,6.742e-05,2]
[328168907,1716991394076,-19520.45595153,8.176e-05,2]
[328168908,1716991394104,-524.23033622,8.177e-05,2]
[328168909,1716991394130,-3330.163063,8.178e-05,2]
[328168913,1716991447286,40719.71781399,6.742e-05,2]
[328168914,1716991447312,507418.07282073,6.742e-05,2]
[328168915,1716991455777,-19520.45595153,8.176e-05,2]
[328168916,1716991465291,311061.47122774,6.742e-05,2]
[328169092,1716991832398,-784.84895054,6.739e-05,2]
[328169093,1716991832408,-341.95104947,6.74e-05,2]
[328169094,1716991832420,-598.19787604,6.74e-05,2]
[328169095,1716991832430,-259.93831373,6.741e-05,2]
[328169096,1716991832439,-237076.31940698,6.742e-05,2]
[328169097,1716991832448,-19749.44622392,6.742e-05,2]
[328169098,1716991832458,-188.35723706,6.742e-05,2]
[328169099,1716991832468,-167.97,8.91e-05,2]
[328169100,1716991832477,-830.39,9.285e-05,2]
[328169101,1716991832487,-275.7836714,0.0001,2]
[328169102,1716991832497,-565.96,0.00010959,2]
[328169103,1716991832506,-943.46,0.00011129,2]
[328169104,1716991832515,-23900.0,0.00011129,2]
[328169105,1716991832524,-3080.86,0.00011129,2]
[328169106,1716991832533,-1895.56,0.00011154,3]
[328169107,1716991832543,-150.0,0.00011154,2]
[328169108,1716991832553,-150.99,0.00011154,2]
[328169109,1716991832562,-8026.73,0.00011155,2]
[328169110,1716991832571,-3569.4,0.00011172,2]
[328169111,1716991832580,-500.0,0.00011182,2]
[328169112,1716991832589,-908.93,0.00011182,2]
[328169113,1716991832598,-171.37,0.00011228,2]
[328169114,1716991832607,-801.87,0.00011228,2]
[328169115,1716991832616,-4865.94,0.00011228,2]
[328169116,1716991832625,-250.0,0.0001124,2]
[328169117,1716991832634,-1000.0,0.0001124,2]
[328169118,1716991832642,-499.99,0.0001124,2]
[328169119,1716991832652,-150.99,0.0001124,2]
[328169120,1716991832661,-158.8,0.00011269,2]
[328169121,1716991832676,-200.0,0.00011315,2]
[328169122,1716991832686,-158.8,0.00011343,2]
[328169123,1716991832694,-181.13,0.00011356,2]
[328169124,1716991832705,-158.8,0.00011416,2]
[328169125,1716991832716,-158.8,0.00011489,2]
[328169126,1716991832725,-830.39,0.00011549,2]
[328169127,1716991832735,-158.8,0.00011563,2]
[328169128,1716991832745,-155.28,0.00011597,2]
[328169129,1716991832755,-155.28,0.00011605,2]
[328169130,1716991832765,-155.28,0.00011613,2]
[328169131,1716991832774,-155.28,0.00011621,2]
[328169132,1716991832783,-976.023,0.00011621,2]
[328169133,1716991832792,-155.28,0.0001163,2]
[328169134,1716991832801,-158.8,0.00011636,2]
[328169135,1716991832811,-155.28,0.00011638,2]
[328169136,1716991832820,-155.28,0.00011646,2]
[328169137,1716991832828,-171.03,0.00011651,2]
[328169138,1716991832837,-155.28,0.00011654,2]
[328169139,1716991832847,-150.0,0.00011671,2]
[328169141,1716991832856,-150.0,0.00011671,2]
[328169143,1716991832865,-524.95,0.00011671,2]
[328169145,1716991832874,-524.95,0.00011671,2]
[328169147,1716991832883,-524.95,0.00011671,2]
[328169149,1716991832892,-524.95,0.00011671,2]
[328169151,1716991832901,-158.8,0.0001171,2]
[328169153,1716991832910,-158.8,0.00011783,2]
[328169154,1716991832920,-158.8,0.00011856,2]
[328169155,1716991832928,-2607.73794193,0.00012,2]
[328169156,1716991832937,-416.3,0.00012055,2]
[328169157,1716991832946,-278.92,0.00012078,2]
[328169158,1716991832955,-524.95,0.00012078,2]
[328169159,1716991832964,-150.0,0.00012078,2]
[328169160,1716991832973,-235.291,0.00012139,2]
[328169161,1716991832983,-1493.4,0.00012139,2]
[328169162,1716991832991,-37953.0,0.00012139,2]
[328169163,1716991833000,-361.26,0.00012192,2]
[328169164,1716991833010,-688.27,0.00012192,2]
[328169165,1716991833019,-154.04,0.00012192,2]
[328169166,1716991833028,-172.83,0.00012192,2]
[328169167,1716991833037,-524.95,0.00012192,2]
[328169168,1716991833046,-524.95,0.00012192,2]
[328169169,1716991833055,-524.95,0.00012192,2]
[328169171,1716991833064,-524.95,0.00012192,2]
[328169172,1716991833074,-200.0,0.0001221,2]
[328169174,1716991833083,-250.0,0.0001221,2]
[328169177,1716991833100,-3336.61,0.0001221,2]
[328169179,1716991833111,-856.248,0.00012393,2]
[328169181,1716991833121,-263.30296889,0.0001249,2]
[328169183,1716991833130,-201.88011597,0.00012491,2]
[328169185,1716991833140,-181.89269478,0.00012492,2]
[328169188,1716991833150,-686.8929503,0.00012492,2]
[328169190,1716991833159,-177.20297686,0.00012492,2]
[328169192,1716991833168,-524.95,0.00012493,2]
[328169194,1716991833178,-1058.61,0.00012493,2]
[328169196,1716991833187,-352.49,0.00012493,2]
[328169198,1716991833197,-163.69,0.00012493,2]
[328169200,1716991833206,-150.0,0.00012621,2]
[328169202,1716991833216,-150.0,0.00012621,2]
[328169203,1716991833225,-1265.0,0.00012621,2]
[328169205,1716991833235,-1000.0,0.00012645,2]
[328169207,1716991833247,-1500.0,0.00012784,2]
[328169209,1716991833256,-300.0,0.0001279,2]
[328169210,1716991833266,-150.0,0.00012792,2]
[328169211,1716991833275,-1500.0,0.00012797,2]
[328169212,1716991833285,-300.0,0.00012797,2]
[328169213,1716991833295,-8174.32236313,0.00012799,2]
[328169214,1716991833310,-2559.15723687,0.00012799,2]
[328169215,1716991833319,-4291.1898,0.00012799,2]
[328169216,1716991833329,-2586.96457669,0.000128,2]
[328169217,1716991833338,-173.84041979,0.000128,2]
[328169218,1716991833347,-166.73821154,0.000128,2]
[328169219,1716991833356,-1500.0,0.00012802,2]
[328169220,1716991833366,-150.0,0.00012806,2]
[328169221,1716991833375,-412.17126416,0.00012808,2]
[328169222,1716991833384,-154.94796708,0.00012814,2]
[328169223,1716991833393,-693.62672303,0.00012819,2]
[328169224,1716991833409,-319.5176318,0.00012819,2]
[328169225,1716991833421,-486.85564517,0.00012819,2]
[328169226,1716991833430,-1500.0,0.00012834,2]
[328169227,1716991833439,-150.0,0.00012836,2]
[328169228,1716991833448,-1284.41224984,0.00012841,2]
[328169229,1716991833461,-215.58775016,0.00012841,2]
[328169230,1716991833471,-1032.37624984,0.00012844,2]
[328169231,1716991833494,-467.62375016,0.00012844,2]
[328169232,1716991833503,-151.11593176,0.00012853,2]
[328169233,1716991833513,-150.0,0.00012855,2]
[328169234,1716991833522,-1735.98442187,0.00012876,2]
[328169235,1716991833531,-126.40843054,0.00012876,2]
[328169248,1716991838355,-2220.0,0.00012876,2]
[328169250,1716991838368,-2402.00916946,0.00012876,2]
[328169252,1716991838378,-1000.0,0.00012877,2]
[328169254,1716991838388,-1000.0,0.00012877,2]
[328169256,1716991838398,-1000.0,0.00012877,2]
[328169257,1716991838408,-1000.0,0.00012877,2]
[328169258,1716991838418,-1000.0,0.00012877,2]
[328169259,1716991838429,-1000.0,0.00012877,2]
[328169260,1716991838439,-1000.0,0.00012877,2]
[328169261,1716991838449,-1000.0,0.00012877,2]
[328169262,1716991838459,-1000.0,0.00012877,2]
[328169263,1716991838471,-1000.0,0.00012877,2]
[328169264,1716991838482,-1000.0,0.00012877,2]
[328169265,1716991838492,-1000.0,0.00012877,2]
[328169266,1716991838503,-1000.0,0.00012877,2]
[328169267,1716991838513,-1000.0,0.00012877,2]
[328169268,1716991838522,-1000.0,0.00012877,2]
[328169269,1716991838533,-1000.0,0.00012877,2]
[328169270,1716991838542,-1000.0,0.00012877,2]
[328169271,1716991838552,-1000.0,0.00012877,2]
[328169272,1716991838562,-1000.0,0.00012877,2]
[328169273,1716991838571,-114.35028166,0.00012877,2]
[328169274,1716991838627,-885.64971834,0.00012877,2]
[328169275,1716991838637,-1000.0,0.00012877,2]
[328169276,1716991838647,-1000.0,0.00012877,2]
[328169277,1716991838656,-526.0,0.00012877,2]
[328169278,1716991838666,-1000.0,0.00012877,2]
[328169279,1716991838677,-1000.0,0.00012877,2]
[328169280,1716991838689,-1000.0,0.00012877,2]
[328169281,1716991838698,-1000.0,0.00012877,2]
[328169282,1716991838708,-1000.0,0.00012877,2]
[328169283,1716991838721,-1000.0,0.00012877,2]
[328169284,1716991838731,-1000.0,0.00012877,2]
[328169285,1716991838740,-1000.0,0.00012877,2]
[328169286,1716991838749,-1000.0,0.00012877,2]
[328169287,1716991838763,-1000.0,0.00012877,2]
[328169288,1716991838774,-1000.0,0.00012877,2]
[328169289,1716991838784,-1000.0,0.00012877,2]
[328169290,1716991838794,-1000.0,0.00012877,2]
[328169291,1716991838804,-788.35028266,0.00012877,2]
[328169292,1716991838816,-211.64971734,0.00012877,2]
[328169293,1716991838826,-801.0,0.00012877,2]
[328169294,1716991838836,-303.88082433,0.00012878,2]
[328169296,1716991838846,-177.60436149,0.00012889,2]
[328169297,1716991838856,-151.58,0.00012889,2]
[328169299,1716991838866,-305.1459001,0.00012897,2]
[328169301,1716991838876,-298.07537792,0.00012897,2]
[328169303,1716991838885,-492.13669012,0.00012897,2]
[328169305,1716991838894,-603.63450829,0.00012897,2]
[328169307,1716991838904,-155.13271823,0.00012898,2]
[328169309,1716991838914,-292.72818215,0.00012898,2]
[328169311,1716991838924,-24032.13734087,0.00012898,2]
[328169313,1716991838934,-1390.75303266,0.00012898,2]
[328169315,1716991838943,-1390.75303257,0.00012898,2]
[328169317,1716991838954,-1390.75303257,0.00012898,2]
[328169319,1716991838963,-1390.75303257,0.00012898,2]
[328169321,1716991838975,-1390.75303257,0.00012898,2]